Cogmind - Beta 17.1 @@@ ROGUE MODE // 2026.09.12 @ 22:54:33 Player: Kite Result: Self-destructed Performance ------------- Evolutions (5) 2500 Regions Visited (20) 4000 Robots Destroyed (207) 1035 Value Destroyed (7014) 7014 Prototype IDs (10) 200 Alien Tech Used (0) 0 Bonus (6722) 6722 TOTAL SCORE: 21471 Bonus ------- High Alert Combat Kills 263 Follower Combat Kills 3116 Awakened Behemoth Slayer 1000 Entered Garrisons 200 Entered DSFs 500 Network Hubs Disabled 400 Met Imprinter 300 Was Imprinted 300 Acquired ECA 300 Built Enhanced Grunts 300 Met R17 at Cetus 500 Friendly Fire -457 Cogmind --------- Core Integrity 823/1000 Matter 17/300 Energy 310/310 System Corruption 0% Temperature Cool (0) Movement Treading (480) Ox4 Location -5/DSF Parts ------- > --- POWER (1) -------- Heavy Deuterium Engine > --- PROPULSION (5) --- Medium Treads Improved Medium Treads > --- UTILITY (6) ------ Humpback Improved Signal Interpreter Microactuators Actuator Array Centrium Medium Armor Plating > --- WEAPON (5) ------- Great Maul Shock Maul Katana Scythe Scythe > --- INVENTORY (35) --- Centrium Heavy Treads Centrium Heavy Treads Huge Storage Unit Improved Sensor Array Improved Sensor Array Advanced Terrain Scan Processor Advanced Melee Analysis Suite Actuator Array Zionite Weapon Casing Centrium Medium Armor Plating Centrium Medium Armor Plating Centrium Medium Armor Plating Centrium Medium Armor Plating EM Disruption Field Authchip [Propulsion] Authchip [Device] Authchip [Weapon] Z-Drone Bay (1/2) RU-N14's Throwing Claymores (4) Shock Maul Blade Saw Blade Saw CR-A16's Behemoth Slayer Peak State ------------ > --- POWER ------------ Heavy Deuterium Engine > --- PROPULSION ------- Armored Treads Improved Medium Treads Spiked Medium Treads Centrium Heavy Treads > --- UTILITY ---------- Humpback Improved Signal Interpreter Advanced Hacking Suite Advanced System Shield Z-Drone Bay > --- WEAPON ----------- Great Maul Shock Maul Katana Scythe Scythe > --- INVENTORY -------- Heavy Deuterium Engine Medium Treads Medium Treads Improved Medium Treads Centrium Heavy Treads Centrium Heavy Treads Huge Storage Unit Improved Sensor Array Improved Sensor Array Advanced Terrain Scan Processor Microactuators Actuator Array Actuator Array Zionite Weapon Casing Hardened Heavy Armor Plating Centrium Medium Armor Plating Centrium Medium Armor Plating Centrium Medium Armor Plating Centrium Medium Armor Plating Centrium Medium Armor Plating EM Disruption Field Authchip [Propulsion] Authchip [Device] Authchip [Weapon] RU-N14's Throwing Claymores Shock Maul Blade Saw Blade Saw CR-A16's Behemoth Slayer [Rating: 94] Favorites ----------- Power Light Nuclear Core Engine Angular Momentum Engine Power Core Light Nuclear Core Propulsion Improved Treads Treads Improved Treads Leg Aluminum Leg Wheel Armored Wheel Utility Improved Signal Interpreter Device Improved Sensor Array Storage Huge Storage Unit Processor Improved Signal Interpreter Hackware Advanced System Shield Protection Improved Medium Armor Plating Weapon Heavy Flail Energy Gun Small Laser Ballistic Cannon Advanced Assault Cannon Launcher Heavy Rocket Launcher Special Weapon RU-N14's Throwing Claymores Impact Weapon Heavy Flail Slashing Weapon Scythe Piercing Weapon CR-A16's Behemoth Slayer Build | -11 -10 -9 -9 -8 -8 -8 -7 -7 -7 -7 -7 -7 -6 -6 -6 -6 -6 -6 -5 -5 ------- Run | Yrd Mat Mat Min Mat Gar Mat Fac Was Fac Low Low Zio Pro Fac Ext Cet Arc Hub Fac DSF Slots Evolved 10 | . . 2 . 2 . . 2 . . . . . . 2 . . . . 2 . Power . | . . . . . . . . . . . . . . . . . . . . . Propulsion 3 | . . 1 . . . . . . . . . . . 2 . . . . . . Utility 4 | . . 1 . . . . 2 . . . . . . . . . . . 1 . Weapon 3 | . . . . 2 . . . . . . . . . . . . . . 1 . Parts Attached 159 | 8 12 11 . 4 9 22 13 1 9 3 2 11 2 10 11 8 10 6 3 4 Power 14 | 1 2 1 . . 1 3 . . 1 1 . . . 1 . . . 2 . 1 Engine 10 | 1 2 1 . . . 3 . . . . . . . 1 . . . 1 . 1 Core 4 | . . . . . 1 . . . 1 1 . . . . . . . 1 . . Reactor . | . . . . . . . . . . . . . . . . . . . . . Propulsion 49 | 2 2 4 . 1 4 6 5 . 2 1 1 4 1 4 4 3 3 2 . . Treads 37 | 2 . 1 . . 2 6 1 . 2 1 1 4 1 4 4 3 3 2 . . Leg 6 | . . 3 . 1 2 . . . . . . . . . . . . . . . Wheel 6 | . 2 . . . . . 4 . . . . . . . . . . . . . Hover . | . . . . . . . . . . . . . . . . . . . . . Flight . | . . . . . . . . . . . . . . . . . . . . . Utility 56 | 2 5 4 . 1 1 7 6 1 4 1 1 3 . 4 1 3 6 . 3 3 Device 18 | 1 2 . . . . . 2 1 3 1 1 . . 1 . . 5 . . 1 Storage 6 | 1 1 . . . . 2 1 . . . . . . 1 . . . . . . Processor 4 | . . 2 . . . 1 1 . . . . . . . . . . . . . Hackware 6 | . . . . . . 1 . . . . . 2 . . . . . . 3 . Protection 22 | . 2 2 . 1 1 3 2 . 1 . . 1 . 2 1 3 1 . . 2 Artifact . | . . . . . . . . . . . . . . . . . . . . . Weapon 40 | 3 3 2 . 2 3 6 2 . 2 . . 4 1 1 6 2 1 2 . . Energy Gun 8 | 3 3 . . . 1 1 . . . . . . . . . . . . . . Energy Cannon . | . . . . . . . . . . . . . . . . . . . . . Ballistic Gun . | . . . . . . . . . . . . . . . . . . . . . Ballistic Cannon 3 | . . . . . . . . . . . . . . 1 1 . . 1 . . Launcher 3 | . . . . . . . 1 . 1 . . . . . 1 . . . . . Special Weapon 3 | . . . . . . . . . . . . 2 . . . . . 1 . . Impact Weapon 13 | . . 2 . 2 2 4 . . 1 . . . . . 2 . . . . . Slashing Weapon 9 | . . . . . . 1 1 . . . . 2 . . 2 2 1 . . . Piercing Weapon 1 | . . . . . . . . . . . . . 1 . . . . . . . Special Melee Weapon . | . . . . . . . . . . . . . . . . . . . . . Unidentified Prototypes 9 | . . 1 . . . . . . 1 . . 1 . . 1 3 1 1 . . Corrupted Parts 2 | . . . . . . . . . . . . . . . . . 2 . . . System Corruption 8 | . . . . . . . . . . . . . . . . . 8 . . . Parts Lost 35 | . 8 3 . . 5 6 1 . 1 1 . . . . . . . 3 . 7 Power 6 | . 1 . . . 1 1 . . . 1 . . . . . . . 1 . 1 Propulsion 15 | . 2 2 . . 3 2 . . . . . . . . . . . 1 . 5 Utility 7 | . 2 1 . . 1 . 1 . 1 . . . . . . . . . . 1 Weapon 7 | . 3 . . . . 3 . . . . . . . . . . . 1 . . Highest Loss Streak 6 | . 3 2 . . 2 2 1 . 1 1 . . . . . . . 1 . 6 To Critical Strikes . | . . . . . . . . . . . . . . . . . . . . . Average Backups 23 | . 7 9 10 9 9 14 20 25 24 24 25 24 24 24 33 33 30 31 27 25 Power . | . . . . . . . . 1 . . . . . . 1 . . . . . Propulsion 6 | . . . . . . 2 11 16 13 12 12 9 9 6 6 4 4 4 4 3 Utility 10 | . 3 2 2 4 4 8 4 5 7 8 8 10 10 10 14 18 18 19 17 16 Weapon 5 | . 3 6 7 5 4 3 3 3 3 4 4 4 5 7 11 10 8 7 5 5 Tool/Special . | . . . . . . . . . . . . . . . . . . . . . Unused Backups 48 | . 2 2 1 . . 9 5 . . . . 6 . 4 7 3 1 . . 8 Power 3 | . . . . . . . . . . . . . . 1 1 1 . . . . Propulsion 10 | . . . 1 . . 3 1 . . . . 1 . 1 3 . . . . . Utility 22 | . . . . . . 3 4 . . . . 3 . 1 2 2 1 . . 6 Weapon 13 | . 2 2 . . . 3 . . . . . 2 . 1 1 . . . . 2 Tool/Special . | . . . . . . . . . . . . . . . . . . . . . Average Slot Usage (%) 95 | . 92 95 100 99 99 97 99 100 99 99 100 97 90 96 86 91 91 91 88 81 Engine 4 | . 13 11 11 9 8 8 7 7 1 . . . . . 6 6 6 3 5 3 Core 2 | . . . . . . . . . 5 6 7 7 7 5 . . . 2 . . Treads 22 | . 15 3 . . 9 23 . . 13 23 23 23 23 32 33 32 32 32 25 21 Leg 2 | . . 18 33 27 17 1 . . . . . . . . . . . . . . Wheel 2 | . 10 8 . . . . 22 23 9 . . . . . . . . . . . Device 6 | . 5 . . . . . 6 14 8 15 15 12 7 11 . . 5 13 5 6 Storage 7 | . 14 11 11 9 9 9 7 7 7 7 7 7 7 6 6 6 6 6 5 5 Processor 7 | . . 6 11 9 9 8 14 15 13 7 7 7 7 6 6 6 6 6 5 5 Protection 6 | . 4 13 11 9 9 8 7 . 6 7 7 6 7 3 5 11 5 . 2 4 Ballistic Cannon 1 | . . . . . . . . . . . . . . 5 9 . . 1 . . Impact Weapon 17 | . . 21 22 35 35 33 22 23 22 22 23 16 15 13 7 6 . . 10 11 Slashing Weapon 9 | . . . . . . 1 7 . 6 6 7 13 7 6 7 17 25 22 17 17 Peak Build Rating 94 | 7 9 17 17 23 23 30 40 40 44 40 43 51 57 60 64 85 93 76 94 92 Average Rating 45 | 4 7 13 17 20 20 26 37 40 40 38 41 45 51 56 59 74 76 70 87 84 On Entrance 40 | . 7 7 17 17 23 19 30 40 40 39 39 43 51 51 57 64 78 70 76 92 Avg Prop Armor Cover (%) 8 | . 11 9 . . 9 5 . . . . . . . . . . . . . . Naked Turns . | . . . . . . . . . . . . . . . . . . . . . Heaviest Build 311 | 14 22 30 30 35 35 65 109 109 114 114 112 118 118 233 250 248 237 235 311 249 Greatest Support 158 | 40 40 30 30 37 40 66 36 36 60 60 68 79 86 132 134 130 144 134 158 158 Greatest Overweight (x) 6 | . 6 2 . 1 2 1 3 3 3 1 1 1 1 1 1 1 3 2 1 1 Average Overweight (x) . | . . . . . . . 1 2 2 1 1 1 1 . 1 1 1 1 . 1 Largest Inventory Capacity 35 | 8 10 10 10 10 10 20 25 25 25 25 25 25 25 35 35 35 35 35 35 35 Average Capacity 24 | 6 9 10 10 10 10 15 22 25 25 25 25 25 25 26 35 35 35 35 34 35 Most Carried 35 | 1 10 10 10 10 10 20 25 25 25 25 25 25 25 29 35 35 35 35 34 32 Average Carried 23 | . 7 9 10 9 9 14 20 25 24 24 25 24 24 25 33 34 33 34 31 27 Final Capacity 35 | 8 10 10 10 10 10 20 25 25 25 25 25 25 25 35 35 35 35 35 35 35 Final Carried 35 | 1 10 10 10 10 10 20 25 25 25 25 25 25 24 29 35 34 35 35 32 25 Class Distribution -------------------- 39% | Gladiator 26% | Mutant 26% | Hauler-Mutant 3% | Assassin Dominant Class ---------------- Mutant | -10/Materials Mutant | -9/Materials Mutant | -9/Mines Mutant | -8/Materials Mutant | -8/Garrison Gladiator | -8/Materials Gladiator | -7/Factory Gladiator | -7/Waste Gladiator | -7/Factory Assassin | -7/Lower Caves Gladiator | -7/Lower Caves Gladiator | -7/Zion Mutant | -6/Proximity Caves Mutant | -6/Factory Hauler-Mutant | -6/Extension Hauler-Mutant | -6/Cetus Hauler-Mutant | -6/Archives Hauler-Mutant | -6/Hub_04(d) Hauler-Mutant | -5/Factory Hauler-Gladiator | -5/DSF Resources | -11 -10 -9 -9 -8 -8 -8 -7 -7 -7 -7 -7 -7 -6 -6 -6 -6 -6 -6 -5 -5 ----------- Run | Yrd Mat Mat Min Mat Gar Mat Fac Was Fac Low Low Zio Pro Fac Ext Cet Arc Hub Fac DSF Matter Collected 4022 | 65 336 128 . 36 115 338 223 394 312 309 104 87 134 326 375 361 206 148 . 25 Remotely . | . . . . . . . . . . . . . . . . . . . . . Salvage Created 8760 | 13 662 392 102 202 411 1899 432 1135 640 221 17 . 166 495 652 80 293 752 . 196 Parts 317 | 5 44 25 . 5 21 53 18 . 24 15 . . 8 11 15 2 28 34 . 9 Haulers Intercepted 16 | . 1 2 . . . 5 . . 2 . . . . 1 4 . . 1 . . Recyclers Shooed 5 | . . 1 . . . . 2 . 1 . . . . . 1 . . . . . Parts Field Recycled . | . . . . . . . . . . . . . . . . . . . . . Retrieved Matter . | . . . . . . . . . . . . . . . . . . . . . Parts Self-Destructed 25 | . . . . . . . . . . 13 3 1 8 . . . . . . . Prevented 2 | . . . . . . . . . . 1 . . 1 . . . . . . . Parts Restored . | . . . . . . . . . . . . . . . . . . . . . Kills | -11 -10 -9 -9 -8 -8 -8 -7 -7 -7 -7 -7 -7 -6 -6 -6 -6 -6 -6 -5 -5 ------- Run | Yrd Mat Mat Min Mat Gar Mat Fac Was Fac Low Low Zio Pro Fac Ext Cet Arc Hub Fac DSF Combat Hostiles Destroyed 137 | . 19 7 . 4 12 28 10 6 11 8 . . 7 12 3 1 . 5 . 4 Melee 46 | . 1 4 . 1 10 12 3 . 3 4 . . . . 1 . . 5 . 2 Guns 17 | . 17 . . . . . . . . . . . . . . . . . . . Cannons 8 | . . . . . . . . . . . . . . 6 2 . . . . . AOE 33 | . . . . . . . 4 6 7 4 . . 6 6 . . . . . . Classes Destroyed 22 | 1 4 2 1 1 2 2 1 1 . . 1 . 1 1 . . 1 2 . 1 Worker 16 | . . 2 2 . . 5 . . 1 . . . . 1 1 . . 4 . . Builder 5 | . 1 1 . . . 2 . . . . . . . . . . . 1 . . Tunneler 6 | 1 1 1 . . . 2 1 . . . . . . . . . . . . . Hauler 16 | . 1 2 . . . 5 . . 2 . . . . 1 4 . . 1 . . Recycler 6 | . . . 1 . . 1 1 . 2 . . . . . 1 . . . . . Minesweeper 1 | . . . . . . . . . . . 1 . . . . . . . . . Operator 9 | . . . . . . . . . . . . . . . . . 8 1 . . Watcher 7 | . . . . . . 3 . . 3 . . . . . . . . 1 . . Swarmer 29 | . 6 . . . 4 . 4 . 5 5 . . 3 2 . . . . . . Saboteur 2 | . . . . . . . . . . . . . . 1 . . . 1 . . Grunt 60 | . 13 6 . 3 4 16 2 . 2 1 . . 3 6 1 . . 1 . 2 Brawler 2 | . . 1 . . . 1 . . . . . . . . . . . . . . Duelist 2 | . . . . . . 1 . . . . . . . 1 . . . . . . Protector 1 | . . . . . . . . . . . . . . . . . . 1 . . Sentry 18 | . . . . 1 2 8 1 . 1 1 . . . 2 1 . . 1 . . Specialist 3 | . . . . . 1 . . . . . . . . . . . . 1 . 1 Hunter 5 | . . . . . 1 2 2 . . . . . . . . . . . . . Programmer 5 | . . . . . . . 1 . 3 1 . . . . . . . . . . Heavy 1 | . . . . . . . . . . . . . . . . . . . . 1 Behemoth 2 | . . . . . . . . . . . . . 1 . 1 . . . . . Compactor 6 | . . . . . . . . 6 . . . . . . . . . . . . Cetus Guard 1 | . . . . . . . . . . . . . . . . 1 . . . . Enhanced Grunt 3 | . . . . . . . . . . . . . . . . . . 3 . . Fireman 1 | . . . . . . . . . . . . . . . . . . 1 . . Best Kill Streak 7 | 1 4 7 2 3 3 4 5 5 7 4 1 . 5 5 2 1 2 3 . 1 Combat Bots Only 6 | . 3 6 . 3 3 4 5 5 6 4 . . 5 5 1 1 . 2 . 1 Max Kills in Single Turn 5 | 1 2 1 1 1 1 1 3 2 5 4 1 . 3 2 1 1 1 4 . 1 Gunslinging 1 | . 1 . . . . . . . . . . . . . . . . . . . Exploded 4 | . . . . . . . 3 2 4 4 . . 3 2 . . . . . . Melee 2 | . 1 1 . 1 1 1 1 . 1 1 . . . . 1 . . 2 . 1 Uniques/NPCs Destroyed . | . . . . . . . . . . . . . . . . . . . . . Combat | -11 -10 -9 -9 -8 -8 -8 -7 -7 -7 -7 -7 -7 -6 -6 -6 -6 -6 -6 -5 -5 -------- Run | Yrd Mat Mat Min Mat Gar Mat Fac Was Fac Low Low Zio Pro Fac Ext Cet Arc Hub Fac DSF Hostile Shots Fired 935 | . 131 23 . 15 117 120 38 . 48 70 . . 21 52 52 19 . 102 . 127 Missed 265 | . 26 7 . 4 27 25 11 . 14 22 . . 6 26 14 6 . 46 . 31 Hits 670 | . 105 16 . 11 90 95 27 . 34 48 . . 15 26 38 13 . 56 . 96 Melee 15 | . . 3 . . . 8 . . . . . . . . . . . 4 . . Projectile 655 | . 105 13 . 11 90 87 27 . 34 48 . . 15 26 38 13 . 52 . 96 Critical Strikes 19 | . . . . . 2 3 1 . . 1 . . 1 . 1 3 . 3 . 4 Part Disruptions 1 | . . . . . . . . . . . . . . . . . . 1 . . Damage Taken 11075 | . 1148 228 . 185 1154 1551 354 35 396 485 . . 389 344 554 382 20 1096 . 2754 Core 1185 | . 231 34 . 32 161 168 46 . 28 5 . . 63 61 58 30 . 91 . 177 Absorbed by Shields 163 | . . . . . . . . . . . . . . . 114 49 . . . . Regen/Repaired (Parts) 1026 | . . . . . . 315 69 . . . . 386 . . . . . . 256 . Core Remaining (%) 63 | 100 7 . 91 . . 34 . . . . . . 79 . . . . 71 . . Volleys Fired 221 | 1 79 . . . 4 6 3 25 7 2 . . 4 34 33 7 . 16 . . Largest 2 | 2 2 . . . 1 1 1 1 1 1 . . 1 1 2 1 . 2 . . Hottest 115 | 90 115 . . . 56 45 39 39 39 39 . . . 40 77 39 . 40 . . Shots Fired 289 | 2 129 . . . 4 6 3 26 6 2 . . 4 34 49 7 . 17 . . Gun 141 | 2 129 . . . 4 6 . . . . . . . . . . . . . . Cannon 94 | . . . . . . . . . . . . . . 31 47 . . 16 . . Launcher 46 | . . . . . . . 3 26 6 2 . . . . 2 7 . . . . Special 8 | . . . . . . . . . . . . . 4 3 . . . 1 . . Kinetic 94 | . . . . . . . . . . . . . . 31 47 . . 16 . . Thermal 135 | 2 129 . . . 4 . . . . . . . . . . . . . . . Explosive 45 | . . . . . . . 3 26 6 2 . . 4 3 . . . 1 . . Electromagnetic 15 | . . . . . . 6 . . . . . . . . 2 7 . . . . Robot Hit Streak 13 | 1 8 . . . . 2 . 7 9 . . . 2 13 5 4 . 5 . . Robot Miss Streak 8 | . 8 . . . . 1 2 2 1 2 . . 3 2 4 . . . . . Penetration Max . | . . . . . . . . . . . . . . . . . . . . . Secondary Targets 1 | . 1 . . . . . . . . . . . . . . . . . . . Max Gunslinging Chain 1 | . 1 . . . . . . . . . . . . . . . . . . . Shots Hit Robots 510 | 1 75 22 3 12 38 115 15 18 26 12 1 . 4 30 26 4 16 38 . 54 Core Hits 213 | 1 35 6 . 2 11 21 9 17 16 9 . . 10 24 13 5 7 21 . 6 Critical Kills 7 | . . 1 . . 1 1 . . 2 . . . . . 1 . . . . 1 Critical Parts Destroyed 40 | . . 3 2 2 3 21 1 . 3 . . . . . 3 . . . . 2 Critical Strikes 71 | . 1 5 2 2 4 22 2 . 6 3 . . . 6 7 . . 7 . 4 Burn 1 | . 1 . . . . . . . . . . . . . . . . . . . Blast 9 | . . . . . . . . . . . . . . 6 3 . . . . . Smash 48 | . . 5 2 2 4 22 1 . 5 . . . . . 4 . . . . 3 Sever 13 | . . . . . . . 1 . 1 3 . . . . . . . 7 . 1 Melee Attacks 525 | . . 36 3 22 64 161 22 . 42 19 2 . 2 7 13 . 22 47 . 63 Impact 382 | . . 36 3 22 64 160 15 . 24 9 2 . . 7 7 . . . . 33 Slashing 141 | . . . . . . 1 7 . 18 10 . . . . 6 . 22 47 . 30 Piercing 2 | . . . . . . . . . . . . . 2 . . . . . . . Sneak Attacks 76 | . . 8 3 . 1 16 5 . 8 . 1 . . 3 3 . 13 13 . 2 Combat Hostiles 5 | . . . . . 1 2 2 . . . . . . . . . . . . . Follow-up Attacks 147 | . . 4 . 6 20 43 3 . 11 6 . . . 1 1 . 4 17 . 31 Damage Inflicted 26323 | 12 1012 1468 203 428 1352 5082 1051 3206 2021 683 112 . 1131 2190 1211 445 1128 2089 . 1499 Guns 1085 | 12 1003 . . . . 70 . . . . . . . . . . . . . . Cannons 1387 | . . . . . . . . . . . . . . 728 622 . . 37 . . Explosions 7582 | . . . . . . 33 231 3206 697 228 . . 1028 1133 74 445 . 507 . . Melee 16068 | . . 1468 203 428 1352 4979 820 . 1324 455 112 . 33 277 445 . 1128 1545 . 1499 Ramming 79 | . 9 . . . . . . . . . . . . . 70 . . . . . Kinetic 1387 | . . . . . . . . . . . . . . 728 622 . . 37 . . Thermal 1120 | 12 1003 . . . . 33 . . . . . . . . . 72 . . . . Explosive 6523 | . . . . . . . 231 3206 697 228 . . 1028 1133 . . . . . . Electromagnetic 1024 | . . . . . . 70 . . . . . . . . 74 373 . 507 . . Impact 11952 | . . 1468 203 428 1352 4937 490 . 1019 231 112 . . 277 445 . . . . 990 Slashing 4205 | . . . . . . 42 330 . 305 224 . . 70 52 . . 1128 1545 . 509 Piercing 33 | . . . . . . . . . . . . . 33 . . . . . . . Highest Corruption 25 | . . 7 7 . . 5 . 22 25 25 25 25 . 1 9 10 10 3 . . Average Corruption 10 | . . 6 7 . . 4 . 12 22 25 25 25 . 1 3 9 6 1 . . Corruption Purged 18 | . . . . . . . . . . . . . . . . . 18 . . . Corruption Blocked . | . . . . . . . . . . . . . . . . . . . . . Effects 271 | . . 9 5 . . 56 . 8 54 47 22 4 . 4 24 21 9 8 . . Message Errors 69 | . . 1 3 . . 18 . 2 6 17 4 2 . . 4 7 4 1 . . Matter Fused 77 | . . 3 1 . . 16 . 1 20 12 6 . . 1 8 4 3 2 . . Heat Flow Errors 34 | . . 1 . . . 9 . 2 9 4 4 . . . 1 2 . 2 . . Energy Discharges 29 | . . 2 . . . 3 . . 7 1 4 1 . 1 5 3 1 1 . . Parts Rejected 3 | . . . . . . 1 . . . 1 . . . . 1 . . . . . Parts Fused 1 | . . . . . . 1 . . . . . . . . . . . . . . Data Loss (minor) 36 | . . 2 . . . 3 . . 7 7 4 1 . 2 3 4 1 2 . . Data Loss (major) 12 | . . . . . . 4 . 2 2 2 . . . . 1 1 . . . . Misfires 2 | . . . . . . . . 1 . . . . . . 1 . . . . . Alerts 4 | . . . 1 . . 1 . . 1 1 . . . . . . . . . . Misdirections 3 | . . . . . . . . . 1 2 . . . . . . . . . . Weapon Failures 1 | . . . . . . . . . 1 . . . . . . . . . . . Overload Shots . | . . . . . . . . . . . . . . . . . . . . . Overflow Damage 4616 | . . 340 163 126 203 1683 263 . 385 68 42 . 130 167 319 . 256 235 . 236 Projectiles 12 | . . . . . . . . . . . . . . 12 . . . . . . Explosions 216 | . . . . . . . 18 . . . . . 130 42 . . . 26 . . Melee 4388 | . . 340 163 126 203 1683 245 . 385 68 42 . . 113 319 . 256 209 . 236 Knockbacks 44 | . . 5 1 4 2 10 2 . 4 1 1 . . 3 8 . . . . 3 Impact 34 | . . 5 1 4 2 10 2 . 4 1 1 . . 1 . . . . . 3 Kinetic 10 | . . . . . . . . . . . . . . 2 8 . . . . . Secondary . | . . . . . . . . . . . . . . . . . . . . . Self-Inflicted Damage 303 | . . . . . 84 . . 37 . . . . . . 23 23 . 136 . . Shots 7 | . . . . . 1 . . 2 . . . . . . 1 1 . 2 . . Rammed 10 | . 6 . . . . . . . . . . . . . 4 . . . . . Targets Rammed 11 | . 7 . . . . . . . . . . . . . 4 . . . . . Kicked . | . . . . . . . . . . . . . . . . . . . . . Crushed 1 | . 1 . . . . . . . . . . . . . . . . . . . Highest Temperature 484 | 30 484 273 . . 20 249 . 206 222 271 233 . . 9 258 259 . 238 . 3 Average Temperature 132 | 18 191 138 . . 10 93 . 101 87 97 104 . . 4 77 104 . 129 . 3 Received Heat Transfer 2981 | . 540 78 . 90 270 531 60 . 24 87 . . 78 87 238 40 . 225 . 633 Effects 14 | . 13 . . . . 1 . . . . . . . . . . . . . . Shutdowns 4 | . 4 . . . . . . . . . . . . . . . . . . . Energy Bleed 4 | . 3 . . . . 1 . . . . . . . . . . . . . . Interference 3 | . 3 . . . . . . . . . . . . . . . . . . . Matter Decay 1 | . 1 . . . . . . . . . . . . . . . . . . . Short Circuit 1 | . 1 . . . . . . . . . . . . . . . . . . . Damage (minor) 1 | . 1 . . . . . . . . . . . . . . . . . . . Siege Activations . | . . . . . . . . . . . . . . . . . . . . . Martial Activations . | . . . . . . . . . . . . . . . . . . . . . Shielding Activations . | . . . . . . . . . . . . . . . . . . . . . Robots Disrupted . | . . . . . . . . . . . . . . . . . . . . . Combat Hostiles . | . . . . . . . . . . . . . . . . . . . . . Robots Corrupted 52 | . . 4 1 3 2 25 4 . 4 . 1 . . 2 2 1 . 1 . 2 Combat Hostiles 31 | . . 3 . 3 2 16 3 . 1 . . . . . . 1 . . . 2 Parts Fried 81 | . . 7 2 1 7 29 10 . 8 2 2 . . 1 4 1 . 6 . 1 Impact Corruptions 123 | . . 9 5 4 9 59 6 . 11 2 2 . . 4 5 . . . . 7 Robots Melted 1 | . 1 . . . . . . . . . . . . . . . . . . . Combat Hostiles 1 | . 1 . . . . . . . . . . . . . . . . . . . Parts Melted 8 | . 5 . . . . . . . . . . . . 1 . . . 2 . . Heat Transferred 2713 | 37 2576 . . . . 50 . . . . . . . . . 50 . . . . Parts Sabotaged . | . . . . . . . . . . . . . . . . . . . . . Parts Stolen . | . . . . . . . . . . . . . . . . . . . . . Parts Stripped . | . . . . . . . . . . . . . . . . . . . . . Power Chain Reactions 3 | . . . . . . 1 . . . . . . . . . 1 . 1 . . Alert | -11 -10 -9 -9 -8 -8 -8 -7 -7 -7 -7 -7 -7 -6 -6 -6 -6 -6 -6 -5 -5 ------- Run | Yrd Mat Mat Min Mat Gar Mat Fac Was Fac Low Low Zio Pro Fac Ext Cet Arc Hub Fac DSF Maximum Alert Level 5 | . 1 . . . 2 2 1 . . . . . . 2 2 1 1 5 3 2 Low Security (%) 55 | 100 84 100 100 100 33 39 43 100 100 . . . . 79 28 . 85 15 . . Level 1 28 | . 15 . . . 55 43 56 . . . . . . . 51 100 14 8 . . Level 2 11 | . . . . . 11 17 . . . . . . . 20 19 . . 18 . 100 Level 3 2 | . . . . . . . . . . . . . . . . . . 18 100 . Level 4 1 | . . . . . . . . . . . . . . . . . . 21 . . Level 5 . | . . . . . . . . . . . . . . . . . . 17 . . High Security . | . . . . . . . . . . . . . . . . . . . . . Max Security . | . . . . . . . . . . . . . . . . . . . . . Peak Influence 1739 | 5 232 112 7 85 413 434 254 111 199 . . . . 695 563 399 256 1739 822 550 Initial 822 | . . 87 7 . 44 200 189 72 40 . . . . 130 321 300 124 . 822 505 Average 240 | . 134 57 1 26 258 250 198 82 92 . . . . 158 284 333 68 908 775 515 Influence Increases 8499 | 5 536 194 15 134 419 952 314 86 465 180 5 . 364 1039 888 325 272 2171 30 105 Destroy 0b10 Robot/C 4040 | . 380 140 . 80 240 560 200 . 220 160 . . 220 440 420 160 80 660 . 80 Destroy 0b10 Robot/NC 435 | 5 15 30 15 . . 90 10 . 40 . 5 . . 20 50 10 40 105 . . Destroy Leader 810 | . 82 24 . 20 10 176 50 . 60 20 . . 40 104 56 . . 158 . 10 Allied During Kill 1648 | . . . . . . . . . . . . . 104 217 227 119 120 861 . . Successful Hack 162 | . 13 . . 4 . 36 3 . 55 . . . . . 21 . . . 30 . Select Force Hacks 30 | . 30 . . . . . . . . . . . . . . . . . . . Disable Machine 375 | . . . . 15 . 15 30 . 45 . . . . 60 45 . 30 135 . . Anti-Garrison Action 250 | . . . . . 100 . . . . . . . . 150 . . . . . . Destroy Structure 539 | . 1 . . . 39 15 21 86 45 . . . . 33 39 36 2 222 . . Partial Spotted 15 | . 15 . . . . . . . . . . . . . . . . . . . Lose Combat Pursuer 195 | . . . . 15 30 60 . . . . . . . 15 30 . . 30 . 15 Influence Decreases 7959 | 5 328 381 36 65 75 947 525 235 448 255 5 . 156 591 1006 552 583 492 987 287 Entered New Map 2696 | . . 121 14 . 25 213 229 135 18 29 . . . 78 335 238 187 . 857 217 Time Decay 4438 | 5 248 230 22 65 . 674 286 100 420 216 5 . 156 408 571 254 356 292 130 . Lost Part 340 | . 80 30 . . 50 60 10 . 10 10 . . . . . . . 20 . 70 Lost Ally 485 | . . . . . . . . . . . . . . 105 100 60 40 180 . . Squads Dispatched 46 | . 5 2 . . . 7 3 . 4 . . . . 6 3 . . 14 . 2 Investigation 16 | . 4 2 . . . 3 2 . . . . . . 1 3 . . 1 . . Extermination 9 | . . . . . . . 1 . 4 . . . . 2 . . . 2 . . Reinforcement 9 | . 1 . . . . 1 . . . . . . . . . . . 5 . 2 Assault 5 | . . . . . . . . . . . . . . 2 . . . 3 . . Garrison 7 | . . . . . . 3 . . . . . . . 1 . . . 3 . . Intercept . | . . . . . . . . . . . . . . . . . . . . . Searches Triggered . | . . . . . . . . . . . . . . . . . . . . . Construction Impeded 1 | . . . . . . . . . . . . . . . . . . 1 . . Haulers Reinforced . | . . . . . . . . . . . . . . . . . . . . . Active Scanning Responses . | . . . . . . . . . . . . . . . . . . . . . Cargo Convoy Interrupts . | . . . . . . . . . . . . . . . . . . . . . Stealth | -11 -10 -9 -9 -8 -8 -8 -7 -7 -7 -7 -7 -7 -6 -6 -6 -6 -6 -6 -5 -5 --------- Run | Yrd Mat Mat Min Mat Gar Mat Fac Was Fac Low Low Zio Pro Fac Ext Cet Arc Hub Fac DSF Distress Signals 8 | . 2 . . . . 3 . . 1 . . . . . . 2 . . . . Communications Jammed . | . . . . . . . . . . . . . . . . . . . . . Distress Signals . | . . . . . . . . . . . . . . . . . . . . . Times Spotted 274 | . 30 9 . 4 14 43 9 6 17 8 . . 11 26 25 9 9 39 . 15 Peak Tracking Total 10 | . 6 3 . 3 4 5 4 3 5 4 . . 4 5 6 5 1 8 . 10 Tactical Retreats 12 | . . . . 1 1 4 . . . . . . . 1 2 . . 2 . 1 Traps | -11 -10 -9 -9 -8 -8 -8 -7 -7 -7 -7 -7 -7 -6 -6 -6 -6 -6 -6 -5 -5 ------- Run | Yrd Mat Mat Min Mat Gar Mat Fac Was Fac Low Low Zio Pro Fac Ext Cet Arc Hub Fac DSF Traps Triggered 16 | . 2 1 . . 2 2 1 . . . . . . 2 6 . . . . . Indirectly . | . . . . . . . . . . . . . . . . . . . . . Trap Hack Attempts . | . . . . . . . . . . . . . . . . . . . . . Triggered . | . . . . . . . . . . . . . . . . . . . . . Disarmed . | . . . . . . . . . . . . . . . . . . . . . Reprogrammed . | . . . . . . . . . . . . . . . . . . . . . Reused . | . . . . . . . . . . . . . . . . . . . . . Traps Extracted . | . . . . . . . . . . . . . . . . . . . . . Installed . | . . . . . . . . . . . . . . . . . . . . . Triggered . | . . . . . . . . . . . . . . . . . . . . . Machines | -11 -10 -9 -9 -8 -8 -8 -7 -7 -7 -7 -7 -7 -6 -6 -6 -6 -6 -6 -5 -5 ---------- Run | Yrd Mat Mat Min Mat Gar Mat Fac Was Fac Low Low Zio Pro Fac Ext Cet Arc Hub Fac DSF Machines Disabled 30 | . . . . 1 3 1 2 . 3 . . . . 5 4 . 2 9 . . Max in Single Turn 5 | . . . . 1 2 1 1 . 1 . . . . 2 3 . . 5 . . Garrison Access 3 | . . . . . . . . . 1 . . . . 2 . . . . . . Garrison Relay 1 | . . . . . 1 . . . . . . . . . . . . . . . Phase Generator 1 | . . . . . 1 . . . . . . . . . . . . . . . Network Hub 2 | . . . . . . . . . . . . . . . . . . 2 . . Energy Cycler 3 | . . . . . . . . . . . . . . . 3 . . . . . Machines Repaired . | . . . . . . . . . . . . . . . . . . . . . Machines Dismantled . | . . . . . . . . . . . . . . . . . . . . . Machines Sabotaged . | . . . . . . . . . . . . . . . . . . . . . Overloaded Fab Kills . | . . . . . . . . . . . . . . . . . . . . . Hacking | -11 -10 -9 -9 -8 -8 -8 -7 -7 -7 -7 -7 -7 -6 -6 -6 -6 -6 -6 -5 -5 --------- Run | Yrd Mat Mat Min Mat Gar Mat Fac Was Fac Low Low Zio Pro Fac Ext Cet Arc Hub Fac DSF Machines Accessed 40 | . 3 1 . 1 1 11 6 . 6 . . . . 3 6 . . . 2 . Terminals 22 | . 2 1 . . 1 6 2 . 3 . . . . . 6 . . . 1 . Fabricators 4 | . . . . . . . 3 . 1 . . . . . . . . . . . Repair Stations 5 | . . . . . . 2 1 . 1 . . . . . . . . . 1 . Recycling Units 1 | . 1 . . . . . . . . . . . . . . . . . . . Scanalyzers 3 | . . . . . . 2 . . . . . . . 1 . . . . . . Garrison Access 5 | . . . . 1 . 1 . . 1 . . . . 2 . . . . . . Total Hacks 106 | . 8 3 . 2 3 38 15 . 10 . . . . 6 16 . . . 5 . Successful 43 | . 4 . . 1 . 18 8 . 4 . . . . 1 4 . . . 3 . Failed 62 | . 3 3 . 1 3 20 7 . 6 . . . . 5 12 . . . 2 . Catastrophic 21 | . 2 3 . . 1 5 2 . 2 . . . . 2 4 . . . . . Database Lockouts 1 | . 1 . . . . . . . . . . . . . . . . . . . Manual 71 | . 9 3 . . . 16 7 . 5 . . . . 10 2 1 . 15 3 . Terminals 57 | . 5 3 . . 3 18 6 . 5 . . . . . 16 . . . 1 . Fabricators 7 | . . . . . . . 5 . 2 . . . . . . . . . . . Repair Stations 20 | . . . . . . 11 4 . 1 . . . . . . . . . 4 . Recycling Units 3 | . 3 . . . . . . . . . . . . . . . . . . . Scanalyzers 7 | . . . . . . 5 . . . . . . . 2 . . . . . . Garrison Access 12 | . . . . 2 . 4 . . 2 . . . . 4 . . . . . . Terminal Hacks 13 | . 2 . . . . 6 . . . . . . . . 4 . . . 1 . Part Schematic 2 | . 1 . . . . 1 . . . . . . . . . . . . . . Open Door 4 | . . . . . . . . . . . . . . . 4 . . . . . Open DSF 1 | . . . . . . . . . . . . . . . . . . . 1 . Repair Station Index 1 | . . . . . . 1 . . . . . . . . . . . . . . Recycling Unit Index 1 | . . . . . . 1 . . . . . . . . . . . . . . Hauler Manifests 2 | . 1 . . . . 1 . . . . . . . . . . . . . . Registered Components 1 | . . . . . . 1 . . . . . . . . . . . . . . Zone Layout 1 | . . . . . . 1 . . . . . . . . . . . . . . Fabricator Hacks 3 | . . . . . . . 3 . . . . . . . . . . . . . Load Schematic 2 | . . . . . . . 2 . . . . . . . . . . . . . Build 1 | . . . . . . . 1 . . . . . . . . . . . . . Repair Station Hacks 13 | . . . . . . 7 4 . . . . . . . . . . . 2 . Scan Component 7 | . . . . . . 4 2 . . . . . . . . . . . 1 . Repair 6 | . . . . . . 3 2 . . . . . . . . . . . 1 . Recycling Unit Hacks . | . . . . . . . . . . . . . . . . . . . . . Scanalyzer 5 | . . . . . . 5 . . . . . . . . . . . . . . Insert Component 2 | . . . . . . 2 . . . . . . . . . . . . . . Analyze 2 | . . . . . . 2 . . . . . . . . . . . . . . Retrieve Study 1 | . . . . . . 1 . . . . . . . . . . . . . . Garrison Access Hacks 3 | . . . . 1 . . . . 1 . . . . 1 . . . . . . Unlock Access 1 | . . . . 1 . . . . . . . . . . . . . . . . Seal Access 2 | . . . . . . . . . 1 . . . . 1 . . . . . . Unauthorized Hacks 5 | . 1 . . . . . 1 . 3 . . . . . . . . . . . Terminals 4 | . . . . . . . 1 . 3 . . . . . . . . . . . Assimilate 1 | . . . . . . . 1 . . . . . . . . . . . . . Botnet 3 | . . . . . . . . . 3 . . . . . . . . . . . Fabricators . | . . . . . . . . . . . . . . . . . . . . . Repair Stations . | . . . . . . . . . . . . . . . . . . . . . Recycling Units 1 | . 1 . . . . . . . . . . . . . . . . . . . Tunnel 1 | . 1 . . . . . . . . . . . . . . . . . . . Scanalyzers . | . . . . . . . . . . . . . . . . . . . . . Garrison Access . | . . . . . . . . . . . . . . . . . . . . . Data Cores Recovered . | . . . . . . . . . . . . . . . . . . . . . Used . | . . . . . . . . . . . . . . . . . . . . . Hacking Detections 35 | . 3 1 . . 1 10 6 . 6 . . . . 2 4 1 . . 1 . Full Trace Events 11 | . 1 1 . . 1 2 2 . . . . . . 1 3 . . . . . Feedback Events 1 | . . . . . . . . . . . . . . 1 . . . . . . Corruption 1 | . . . . . . . . . . . . . . 1 . . . . . . Feedback Blocked . | . . . . . . . . . . . . . . . . . . . . . Robot Schematics Acquired . | . . . . . . . . . . . . . . . . . . . . . Robots Built . | . . . . . . . . . . . . . . . . . . . . . Authchips . | . . . . . . . . . . . . . . . . . . . . . Time . | . . . . . . . . . . . . . . . . . . . . . Total Robot Build Rating . | . . . . . . . . . . . . . . . . . . . . . Part Schematics Acquired 4 | . 1 . . . . 3 . . . . . . . . . . . . . . Parts Built 1 | . . . . . . . 1 . . . . . . . . . . . . . Authchips . | . . . . . . . . . . . . . . . . . . . . . Time 51 | . . . . . . . 51 . . . . . . . . . . . . . Total Part Build Rating 1 | . . . . . . . 1 . . . . . . . . . . . . . Part Studies Acquired 1 | . . . . . . 1 . . . . . . . . . . . . . . Parts Repaired 6 | . . . . . . 3 2 . . . . . . . . . . . 1 . Time 164 | . . . . . . 104 52 . . . . . . . . . . . 8 . Parts Recycled . | . . . . . . . . . . . . . . . . . . . . . Recycled Matter . | . . . . . . . . . . . . . . . . . . . . . Retrieved Matter . | . . . . . . . . . . . . . . . . . . . . . Retrieved Components . | . . . . . . . . . . . . . . . . . . . . . Parts Scanalyzed 2 | . . . . . . 2 . . . . . . . . . . . . . . Part Schematics Acquired 2 | . . . . . . 2 . . . . . . . . . . . . . . Parts Damaged . | . . . . . . . . . . . . . . . . . . . . . Bothacking | -11 -10 -9 -9 -8 -8 -8 -7 -7 -7 -7 -7 -7 -6 -6 -6 -6 -6 -6 -5 -5 ------------ Run | Yrd Mat Mat Min Mat Gar Mat Fac Was Fac Low Low Zio Pro Fac Ext Cet Arc Hub Fac DSF Used RIF Installer . | . . . . . . . . . . . . . . . . . . . . . Robots Hacked . | . . . . . . . . . . . . . . . . . . . . . Non-combat . | . . . . . . . . . . . . . . . . . . . . . Combat . | . . . . . . . . . . . . . . . . . . . . . Robot Hacks Applied . | . . . . . . . . . . . . . . . . . . . . . Relay Couplers Released 3 | . . . . . 3 . . . . . . . . . . . . . . . Machine Destruction 3 | . . . . . 3 . . . . . . . . . . . . . . . Fabnet Peak Effective % . | . . . . . . . . . . . . . . . . . . . . . Robots Rewired 6 | . . . . . . . . . . . . . . . 6 . . . . . Allies Hacked 1 | . . . . . . . . . . . . . . . . . . 1 . . Hacks Repelled . | . . . . . . . . . . . . . . . . . . . . . Allies | -11 -10 -9 -9 -8 -8 -8 -7 -7 -7 -7 -7 -7 -6 -6 -6 -6 -6 -6 -5 -5 -------- Run | Yrd Mat Mat Min Mat Gar Mat Fac Was Fac Low Low Zio Pro Fac Ext Cet Arc Hub Fac DSF Total Allies 35 | . . . 1 . . . . . . . . 4 . 5 13 5 . 7 . . Largest Group 12 | . . . 1 1 . . . . . . . 4 4 8 12 10 8 11 . . Highest-Rated Group 818 | . . . 31 31 . . . . . . . 160 160 271 516 818 602 733 . . Highest-Rated Ally 159 | . . . 31 31 . . . . . . . 41 41 41 159 159 96 96 . . Zionite Dispatches 7 | . . . . . . . . . . . . . . 4 1 . . 2 . . Light 2 | . . . . . . . . . . . . . . . 1 . . 1 . . Recon 1 | . . . . . . . . . . . . . . 1 . . . . . . Fire 2 | . . . . . . . . . . . . . . 1 . . . 1 . . Resource Resupply 1 | . . . . . . . . . . . . . . 1 . . . . . . Heavy Resupply 1 | . . . . . . . . . . . . . . 1 . . . . . . Initial Warlord ECA Mod 2 | . . . . . . 2 1 1 1 1 1 1 . . . . . . . . Total Orders 23 | . . . . . . . . . . . . . . 11 . . 1 9 2 . STAY 1 | . . . . . . . . . . . . . . . . . . 1 . . DROP 2 | . . . . . . . . . . . . . . 2 . . . . . . COLLECT 1 | . . . . . . . . . . . . . . . . . 1 . . . EXPLORE 11 | . . . . . . . . . . . . . . 5 . . . 5 1 . RETURN 8 | . . . . . . . . . . . . . . 4 . . . 3 1 . Ally Attacks 504 | . . . . 4 . . . . . . . . 18 56 173 60 28 165 . . Total Damage 14393 | . . . . 82 . . . . . . . . 238 1293 3331 2245 822 6382 . . Kills 97 | . . . . . . . . . . . . . 4 13 26 9 4 41 . . Allies Corrupted 2 | . . . . . . . . . . . . . . . . . . 2 . . Allies Melted 1 | . . . . . . . . . . . . . . . 1 . . . . . Intel | -11 -10 -9 -9 -8 -8 -8 -7 -7 -7 -7 -7 -7 -6 -6 -6 -6 -6 -6 -5 -5 ------- Run | Yrd Mat Mat Min Mat Gar Mat Fac Was Fac Low Low Zio Pro Fac Ext Cet Arc Hub Fac DSF Active Infowar (turns) 11309 | 29 18 280 276 168 968 13 494 218 1228 978 561 3195 531 1399 61 . 3 774 112 3 Optics 1702 | . . 277 276 168 968 13 . . . . . . . . . . . . . . Sensors 9557 | . . . . . . . 494 218 1228 978 561 3195 531 1399 61 . 3 774 112 3 Terrain 767 | . . . . . . . . . 122 645 . . . . . . . . . . Seismic 63 | 29 18 16 . . . . . . . . . . . . . . . . . . Robot Analysis Total . | . . . . . . . . . . . . . . . . . . . . . Derelict Logs Recovered 3 | . . . . . . . . . . . 1 2 . . . . . . . . Drone Launches 12 | . . . . . . . . . . . . . . 6 . . . 5 1 . Drone Recoveries 11 | . . . . . . . . . . . . . . 6 . . . 4 1 . Zionite Intel Received 2 | . . . . . . . . . . . . . . . . . . 2 . . Main Access 1 | . . . . . . . . . . . . . . . . . . 1 . . Emergency Access 1 | . . . . . . . . . . . . . . . . . . 1 . . Exploration | -11 -10 -9 -9 -8 -8 -8 -7 -7 -7 -7 -7 -7 -6 -6 -6 -6 -6 -6 -5 -5 ------------- Run | Yrd Mat Mat Min Mat Gar Mat Fac Was Fac Low Low Zio Pro Fac Ext Cet Arc Hub Fac DSF Turns Passed 19158 | 82 617 481 276 168 968 2634 637 218 1257 1065 561 3207 531 1410 1723 557 1481 774 266 245 Spaces Moved 7991 | 47 267 325 223 59 407 1172 382 138 553 413 230 1299 208 724 622 181 345 250 93 53 Core 15 | 8 7 . . . . . . . . . . . . . . . . . . . Treads 6090 | 39 92 1 . . 121 1172 . . 247 413 230 1299 208 724 622 181 345 250 93 53 Legs 769 | . . 201 223 59 286 . . . . . . . . . . . . . . . Wheels 1117 | . 168 123 . . . . 382 138 306 . . . . . . . . . . . Hover . | . . . . . . . . . . . . . . . . . . . . . Flight . | . . . . . . . . . . . . . . . . . . . . . Fastest Speed 50 | 50 80 80 120 123 123 145 105 120 120 240 240 240 246 160 231 231 231 231 162 240 Average Speed 193 | 141 124 111 120 179 163 167 114 120 182 240 240 242 246 167 239 231 242 239 244 244 Slowest Speed 356 | 160 350 260 120 190 260 240 135 135 320 240 240 246 246 240 242 231 356 306 247 247 Overloaded Moves . | . . . . . . . . . . . . . . . . . . . . . Propulsion Burnouts . | . . . . . . . . . . . . . . . . . . . . . Robots Hopped . | . . . . . . . . . . . . . . . . . . . . . Potential Cave-ins . | . . . . . . . . . . . . . . . . . . . . . Cave-ins Triggered . | . . . . . . . . . . . . . . . . . . . . . Exploration Rate (%) 46 | 3 47 23 55 10 51 77 16 78 19 63 44 89 38 28 75 56 79 47 4 71 Regions Visited 20 Branch Regions 9 Pre-discovered Areas 3 | . 1 . . . . . . . . 1 . 1 . . . . . . . . Known Exits Taken 12 | . . . . 1 . . . . 1 1 1 1 1 1 1 1 1 1 1 . Unknown Exits Taken 5 | 1 1 1 1 . . 1 . . . . . . . . . . . . . . Scrap Searched 6 | . . . 1 . . . . . . 2 2 . 1 . . . . . . . Spaces Dug 28 | . . . . . 1 12 2 . 4 . . . . 3 3 . . 3 . . Terrain Destroyed 818 | . . . . . 53 15 25 195 57 18 . . 48 23 33 10 . 341 . . Melee 27 | . . . . . 1 12 2 . 4 . . . . 3 3 . . 2 . . Projectile 19 | . . . . . . . . . . . . . 2 1 5 . . 11 . . AOE 772 | . . . . . 52 3 23 195 53 18 . . 46 19 25 10 . 328 . . Terrain Rammed . | . . . . . . . . . . . . . . . . . . . . . Walls Destroyed . | . . . . . . . . . . . . . . . . . . . . . Machines Disabled . | . . . . . . . . . . . . . . . . . . . . . Actions | -11 -10 -9 -9 -8 -8 -8 -7 -7 -7 -7 -7 -7 -6 -6 -6 -6 -6 -6 -5 -5 --------- Run | Yrd Mat Mat Min Mat Gar Mat Fac Was Fac Low Low Zio Pro Fac Ext Cet Arc Hub Fac DSF Total 10809 | 57 413 402 227 98 638 1664 559 164 745 465 237 1370 220 874 789 320 972 361 136 98 Wait 1578 | . 27 15 . 16 166 293 94 . 105 24 . 22 1 66 37 88 562 49 10 3 Move 7970 | 46 266 324 222 58 404 1171 382 137 552 412 229 1298 207 723 621 180 344 249 92 53 Hop . | . . . . . . . . . . . . . . . . . . . . . Pick Up 182 | 1 12 10 1 3 4 34 24 . 12 2 1 12 . 10 18 12 12 3 10 1 Fast Attach 81 | 8 8 8 . . 4 8 3 . 5 1 . 6 1 5 4 6 9 2 2 1 Attach 55 | . 1 3 . 2 3 6 4 . 2 1 . 1 1 3 2 2 9 3 5 7 Detach 10 | . 1 . . . . 1 . . 1 . . . . 3 3 . . . 1 . Swap 123 | . 6 1 . 2 4 11 12 2 17 10 4 9 3 13 9 4 4 7 4 1 Drop 205 | 1 6 12 1 3 5 27 19 . 18 2 2 22 1 11 17 21 18 5 12 2 Fire 221 | 1 79 . . . 4 6 3 25 7 2 . . 4 34 33 7 . 16 . . Melee 337 | . . 29 3 14 39 107 18 . 26 11 1 . 2 6 10 . 14 27 . 30 Ram . | . . . . . . . . . . . . . . . . . . . . . Kick . | . . . . . . . . . . . . . . . . . . . . . Crush 11 | . 7 . . . . . . . . . . . . . 4 . . . . . Escape Stasis 13 | . . . . . 5 . . . . . . . . . 8 . . . . . Rewire 23 | . . . . . . . . . . . . . . . 23 . . . . . Trap . | . . . . . . . . . . . . . . . . . . . . . Miscellaneous . | . . . . . . . . . . . . . . . . . . . . . Route ------- -11/Scrapyard -10/Materials -9/Materials -9/Mines -8/Materials -8/Garrison (discovered 2 exits: *Mat x2) -8/Materials -7/Factory -7/Waste -7/Factory (discovered 3 exits: *Fac x2 / *Low) -7/Lower Caves -7/Lower Caves -7/Zion -6/Proximity Caves -6/Factory (discovered 4 exits: *Fac / *Low x2 / *Ext) -6/Extension (discovered 2 exits: *Fac / *Cet) -6/Cetus (discovered 2 exits: *Fac / *Arc) -6/Archives (discovered 3 exits: *Fac / *Hub x2) -6/Hub_04(d) (discovered 4 exits: *Fac x4) -5/Factory (discovered 2 exits: Upp / DSF) -5/DSF (discovered 1 exit: [*Fac]) History --------- Turn | Location | Event 7 | -11/Scrapyard | Discovered new exit (range 14) 83 | -11/Scrapyard | Entered Materials 176 | -10/Materials | Central database locked down 296 | -10/Materials | Lost 3 parts (1p2w) 332 | -10/Materials | Build established: Mutant 341 | -10/Materials | Discovered new exit (range 16) 373 | -10/Materials | Core integrity fell below 50% 599 | -10/Materials | Core integrity fell below 20% 700 | -10/Materials | Entered another Materials area 700 | -9/Materials | Evolved 2 slots: Propulsion x1, Utility x1 1167 | -9/Materials | Discovered new exit (range 12) 1181 | -9/Materials | Entered Mines 1291 | -9/Mines | Received a Mining Laser from a helpful Derelict 1295 | -9/Mines | Discovered new exit (range 6) 1457 | -9/Mines | Entered Materials 1457 | -8/Materials | Accompanied by 1 ally 1457 | -8/Materials | Evolved 2 slots: Weapon x2 1617 | -8/Materials | Identified exit to Garrison 1625 | -8/Materials | Entered Garrison 1743 | -8/Garrison | Triggered checkpoint 1899 | -8/Garrison | Triggered checkpoint 1913 | -8/Garrison | Garrison Relay disabled 2092 | -8/Garrison | Phase Generator disabled 2249 | -8/Garrison | Discovered new exit (range 13) 2282 | -8/Garrison | Attempted to access garrison exit controls, blocked by remote lockdown 2431 | -8/Garrison | Triggered checkpoint 2572 | -8/Garrison | Discovered new exit (range 13) 2593 | -8/Garrison | Entered Materials 3026 | -8/Materials | Build established: Gladiator 3349 | -8/Materials | Discovered new exit (range 8) 3526 | -8/Materials | Core integrity fell below 50% 4040 | -8/Materials | Repaired Hcp. Storage Unit 4071 | -8/Materials | Garrison activated, responded to threat 4585 | -8/Materials | Repaired Corrupted Imp. Terrain Scanner 4624 | -8/Materials | Repaired Adv. Treads+ 5227 | -8/Materials | Entered Factory 5227 | -7/Factory | Evolved 2 slots: Utility x2 5286 | -7/Factory | Repaired Lgt. Treads 5313 | -7/Factory | Repaired Lgt. Treads 5594 | -7/Factory | Fabricated Huge Storage Unit (x1) 5751 | -7/Factory | Discovered new exit (range 9) 5798 | -7/Factory | Identified exit to Storage 5864 | -7/Factory | Sucked down chute 5864 | -7/Factory | Entered Waste 5879 | -7/Waste | EMP discharged 5899 | -7/Waste | Spotted C-40 Crusher 5900 | -7/Waste | Spotted C-40 Crusher 5905 | -7/Waste | Spotted C-40 Crusher 5911 | -7/Waste | Destroyed C-40 Crusher 5911 | -7/Waste | Destroyed C-40 Crusher 5921 | -7/Waste | Spotted C-40 Crusher 5926 | -7/Waste | Destroyed C-40 Crusher 5934 | -7/Waste | Destroyed C-40 Crusher 5941 | -7/Waste | Spotted C-40 Crusher 5948 | -7/Waste | Destroyed C-40 Crusher 5956 | -7/Waste | Spotted C-40 Crusher 5979 | -7/Waste | EMP discharged 5979 | -7/Waste | System corruption reached 10% 5995 | -7/Waste | Destroyed C-40 Crusher 6064 | -7/Waste | Discovered new exit (range 12) 6079 | -7/Waste | EMP discharged 6081 | -7/Waste | Identified exit to Factory 6082 | -7/Waste | Entered Factory 6217 | -7/Factory | Discovered new exit (range 15) 6236 | -7/Factory | Identified exit to Factory 7253 | -7/Factory | Discovered new exit (range 14) 7336 | -7/Factory | Discovered exit to Factory (range 10) 7336 | -7/Factory | Identified exit to Lower Caves 7339 | -7/Factory | Entered Lower Caves 7388 | -7/Lower Caves | Met a Warlord Commander 7389 | -7/Lower Caves | Learned location of Warlord (-5) 7390 | -7/Lower Caves | Warlord Commander delivered Encrypted Comm Array 7666 | -7/Lower Caves | Build established: Assassin 7998 | -7/Lower Caves | Attracted the attention of an 0b10 checkpoint 8208 | -7/Lower Caves | Encountered a Warlord checkpoint 8212 | -7/Lower Caves | Discovered new exit (range 7) 8307 | -7/Lower Caves | Build established: Gladiator 8402 | -7/Lower Caves | Identified exit to Lower Caves 8404 | -7/Lower Caves | Entered another Lower Caves area 8917 | -7/Lower Caves | Discovered new exit (range 11) 8950 | -7/Lower Caves | Identified exit to Zion 8965 | -7/Lower Caves | Entered Zion 8980 | -7/Zion | Learned 8 Factory zone layouts 9071 | -7/Zion | System corruption cleaned by Quarantine Array 9261 | -7/Zion | Discovered new exit (range 9) 9678 | -7/Zion | Learned Factory security intel 10052 | -7/Zion | Learned location of Quarantine (-3) 10129 | -7/Zion | Found CR-A16's Pointy Stick 10466 | -7/Zion | Visited the Megawrench Repair Shop 11352 | -7/Zion | Megawrench repaired 8 parts 11364 | -7/Zion | Build established: Mutant 11623 | -7/Zion | Met Imprinter 11670 | -7/Zion | Imprinted 11672 | -7/Zion | Declared Zion's savior 11882 | -7/Zion | Found Prototype Special Weapon 11886 | -7/Zion | Found Prototype Special Weapon 11891 | -7/Zion | Identified RU-N14's Throwing Claymores (x2) 11897 | -7/Zion | Found RU-N14's Throwing Claymores 12157 | -7/Zion | Identified exit to Proximity Caves 12172 | -7/Zion | Entered Proximity Caves 12172 | -6/Proximity Caves | Accompanied by 4 allies 12355 | -6/Proximity Caves | Spotted B-75 Beast 12362 | -6/Proximity Caves | Revealed the true nature of CR-A16's Pointy Stick 12365 | -6/Proximity Caves | Destroyed B-75 Beast 12679 | -6/Proximity Caves | Discovered exit to Factory (range 11) 12703 | -6/Proximity Caves | Entered Factory 12703 | -6/Factory | Accompanied by 4 allies 12703 | -6/Factory | Evolved 2 slots: Propulsion x2 12799 | -6/Factory | Discovered new exit (range 6) 12807 | -6/Factory | Identified exit to Lower Caves 13276 | -6/Factory | Zion Heavy Resupply teleported in 13496 | -6/Factory | Zion Fire squad teleported in 13563 | -6/Factory | Zion Recon squad teleported in 13583 | -6/Factory | Discovered exit to Lower Caves (range 27) 13782 | -6/Factory | Discovered new exit (range 29) 13818 | -6/Factory | Garrison activated, responded to threat 13864 | -6/Factory | Discovered new exit (range 36) 13865 | -6/Factory | Zion Resource Resupply teleported in 13871 | -6/Factory | Lost 5 allies 14056 | -6/Factory | Identified exit to Extension 14113 | -6/Factory | Entered Extension 14113 | -6/Extension | Accompanied by 2 allies 14196 | -6/Extension | Build established: Hauler-Mutant 14538 | -6/Extension | Rescued A7 14699 | -6/Extension | Rescued a captive Derelict 14739 | -6/Extension | Rescued a captive Derelict 14834 | -6/Extension | Rescued a captive Derelict 15162 | -6/Extension | Lost 4 allies 15233 | -6/Extension | Spotted B-75 Beast 15256 | -6/Extension | Spotted B-75 Beast 15263 | -6/Extension | Allies destroyed B-75 Beast 15273 | -6/Extension | Destroyed B-75 Beast 15299 | -6/Extension | Lost 4 allies 15451 | -6/Extension | Zion Light squad teleported in 15488 | -6/Extension | Terminal network hard line cut 15688 | -6/Extension | Energy Cycler disabled 15688 | -6/Extension | Rescued a captive Derelict 15688 | -6/Extension | Rescued a captive Derelict 15691 | -6/Extension | Rescued a captive Derelict 15692 | -6/Extension | Rescued a captive Derelict 15694 | -6/Extension | Rescued a captive Derelict 15698 | -6/Extension | Rescued a captive Derelict 15763 | -6/Extension | Discovered new exit (range 10) 15766 | -6/Extension | Discovered new exit (range 6) 15778 | -6/Extension | Identified exit to Cetus 15797 | -6/Extension | Identified exit to Factory 15836 | -6/Extension | Entered Cetus 15836 | -6/Cetus | Accompanied by 6 allies (A7) 15841 | -6/Cetus | Acquired a Cetus Manufacturing Module code from A7 15867 | -6/Cetus | Spotted Cetus Guard 15867 | -6/Cetus | Spotted Cetus Guard 15872 | -6/Cetus | Spotted Cetus Guard 15873 | -6/Cetus | System corruption reached 10% 15873 | -6/Cetus | Spotted Cetus Guard 15883 | -6/Cetus | Allies destroyed Cetus Guard 15886 | -6/Cetus | Destroyed Cetus Guard 15888 | -6/Cetus | Allies destroyed Cetus Guard 15893 | -6/Cetus | Allies destroyed Cetus Guard 15910 | -6/Cetus | Found Prototype Protection 15910 | -6/Cetus | Identified Zio. Weapon Casing 16027 | -6/Cetus | Started Cetus Manufacturing Module 16052 | -6/Cetus | Manufactured an Enhanced Grunt 16077 | -6/Cetus | Manufactured an Enhanced Grunt 16102 | -6/Cetus | Manufactured an Enhanced Grunt 16117 | -6/Cetus | Discovered new exit (range 16) 16127 | -6/Cetus | Manufactured an Enhanced Grunt 16152 | -6/Cetus | Manufactured an Enhanced Grunt 16159 | -6/Cetus | Spotted Cetus Guard 16159 | -6/Cetus | Spotted Cetus Guard 16164 | -6/Cetus | Spotted Cetus Guard 16166 | -6/Cetus | Allies destroyed Cetus Guard 16178 | -6/Cetus | Spotted Cetus Guard 16180 | -6/Cetus | Allies destroyed Cetus Guard 16180 | -6/Cetus | Allies destroyed Cetus Guard 16181 | -6/Cetus | Extracted ID and sensor layout for unrecognized location from A7's data core 16207 | -6/Cetus | Discovered exit to Factory (range 15) 16218 | -6/Cetus | Scared off Revision 17 16376 | -6/Cetus | Identified exit to Archives 16393 | -6/Cetus | Entered Archives 16393 | -6/Archives | Accompanied by 8 allies 16565 | -6/Archives | Discovered exit to Factory (range 15) 16865 | -6/Archives | Discovered new exit (range 15) 17583 | -6/Archives | Discovered new exit (range 16) 17617 | -6/Archives | Identified exit to Hub_04(d) 17874 | -6/Archives | Entered Hub_04(d) 17874 | -6/Hub_04(d) | Accompanied by 6 allies 17932 | -6/Hub_04(d) | Retrieved Zion intel report: Main Access 17933 | -6/Hub_04(d) | Zion Light squad teleported in 18050 | -6/Hub_04(d) | Zion Fire squad teleported in 18176 | -6/Hub_04(d) | Retrieved Zion intel report: Emergency Access 18198 | -6/Hub_04(d) | Garrison activated, responded to threat 18224 | -6/Hub_04(d) | First assault squad dispatched 18365 | -6/Hub_04(d) | Lost 3 allies 18418 | -6/Hub_04(d) | Network Hub disabled 18444 | -6/Hub_04(d) | Murdered 3 allies 18516 | -6/Hub_04(d) | Network Hub disabled 18641 | -6/Hub_04(d) | Spotted Lightning 18641 | -6/Hub_04(d) | Spotted Lightning 18643 | -6/Hub_04(d) | Spotted Lightning 18648 | -6/Hub_04(d) | Entered Factory 18648 | -5/Factory | Evolved 2 slots: Utility x1, Weapon x1 18649 | -5/Factory | Identified exit to Upper Caves 18781 | -5/Factory | Repaired Humpback 18902 | -5/Factory | Identified exit to DSF 18914 | -5/Factory | Entered DSF 18981 | -5/DSF | Additional patrols routed to DSF 19125 | -5/DSF | Lost 6 parts (1p4n1u) 19156 | -5/DSF | Discovered new exit (range 15) 19159 | -5/DSF | Self-destructed Last Messages --------------- 19152_ C-30 ARC bursts open, deploying its payload. 19152_ G-67 Veteran unfolds itself. 19152_ G-50 Soldier unfolds itself. 19153_ G-67 Veteran suffers critical hit (Smash). 19153_ Destroyed Lgt. Antimatter Reactor. 19153_ G-67 Veteran system corrupted by crushing effect. 19153_ G-67 Veteran knocked back. 19153_ Scythe follow-up attack on G-50 Soldier. 19153_ G-50 Soldier Carbon-fiber Leg severed. 19153_ Katana follow-up attack on G-50 Soldier. 19153_ G-50 Soldier destroyed. 19155_ Slug penetrates Wall. 19156_ EXIT=FOUND 19157_ Centrium Heavy Treads destroyed. 19157_ C-30 ARC bursts open, deploying its payload. 19157_ S-27 Virus unfolds itself. Map ----- +----------------------------------------------------+ | ?????????????????????!! #??????### ##?????? | | ??????????????????????! #??????# =#?????? | | ??????????????????????! #??????# =#?????? | | ????????????????????### #"#??????### ##?????? | | ????????????????????#!! !!???????#== #?????? | | ????????????????????#!! !!???###?#== #?????? | | ?????????????????????!! !???# #?#== #?????? | | ????????????????###???# "?##""##"### ###????? | | ????????????#/??#!!!?## ###!!!"!!!"# #????? | | ????????? ##///#!!!## %%#"!!!"!!!"# #????? | | ?????????? ^^ % % !!#????? | | ?????????? ^ % % % !!#????? | | ?????????? ^ % % ^ !!"#???? | | ????????????# #!!!##% *%##!!!# ## ##???? | | ????????????????#????## ###!!!# ## #????? | | ????????????????????### #################????? | | ????????????????????#!! !!#??????????????????? | | ????????????????????#!! !!#??????????????????? | | ????????????????????#!! %!!#??????????????????? | | ????????????????????#;; =###??????????????????? | | ????????????????????#! #??????????????????? | | ????????????????????#!! #??????????????????? | | ????????????????????#!! #??????????????????? | | ????????????????????##; ###??????????????????? | | ?????????????#!!#!!!##; ;;#??????????????????? | | ????????" xx !%@ #??????????????????? | | ????????"